fUST/lending_fUST_20250911
["ID","MTS","AMOUNT","RATE_DAILY","PERIOD"]
[384805083,1757561443133,-480.0,0.00014204,2]
[384805084,1757561443142,-485.45161589,0.00014204,2]
[384805085,1757561443151,-645.23,0.00014204,2]
[384805086,1757561443160,-810.08,0.00014204,2]
[384805087,1757561443170,-2392.02,0.00014204,2]
[384805088,1757561443180,-480.0,0.00014204,2]
[384805089,1757561443189,-480.0,0.00014204,2]
[384805090,1757561443198,-452.87510406,0.00014204,2]
[384805159,1757561447766,159.298868,0.00013699,2]
[384805168,1757561581041,662.66930198,0.00013826,2]
[384805169,1757561617242,10000.01,0.00013829,2]
[384805170,1757561617266,10000.01,0.00013829,2]
[384805171,1757561617288,10000.01,0.00013829,2]
[384805172,1757561617311,10000.01,0.00013829,2]
[384805173,1757561617333,10000.01,0.00013829,2]
[384805174,1757561617357,10000.01,0.00013829,2]
[384805175,1757561617380,10000.01,0.00013829,2]
[384805176,1757561617401,10000.01,0.00013829,2]
[384805177,1757561617423,10000.01,0.00013829,2]
[384805178,1757561617446,10000.01,0.00013829,2]
[384805179,1757561621786,-8956.98301699,0.00013829,2]
[384805180,1757561621896,-10000.01,0.00013829,2]
[384805181,1757561622111,-10000.01,0.00013829,2]
[384805182,1757561622152,-10000.01,0.00013829,2]
[384805183,1757561622314,-10000.01,0.00013829,2]
[384805184,1757561622457,-10000.01,0.00013829,2]
[384805185,1757561622587,-10000.01,0.00013829,2]
[384805186,1757561622723,-10000.01,0.00013829,2]
[384805187,1757561626594,-10000.01,0.00013829,2]
[384805188,1757561626715,-10000.01,0.00013829,2]
[384805189,1757561626868,-10000.01,0.00013829,2]
[384805190,1757561626958,-10000.01,0.00013829,2]
[384805191,1757561627095,-10000.01,0.00013829,2]
[384805192,1757561627197,-10000.01,0.00013829,2]
[384805193,1757561627334,-10000.01,0.00013829,2]
[384805194,1757561627455,-10000.01,0.00013829,2]
[384805195,1757561627587,-10000.01,0.00013829,2]
[384805196,1757561627739,-10000.01,0.00013829,2]
[384805197,1757561631667,-10000.01,0.00013829,2]
[384805198,1757561631790,-10000.01,0.00013829,2]
[384805199,1757561631913,-10000.01,0.00013829,2]
[384805200,1757561632043,-10000.01,0.00013829,2]
[384805201,1757561632158,-10000.01,0.00013829,2]
[384805202,1757561632268,-10000.01,0.00013829,2]
[384805203,1757561632388,-10000.01,0.00013829,2]
[384805204,1757561632587,-10000.01,0.00013829,2]
[384805205,1757561632755,-10000.01,0.00013829,2]
[384805206,1757561632929,-1042.65698301,0.00013829,2]
[384805207,1757561645329,300.0,0.00013786,2]
[384805208,1757561651595,158.66,0.00012329,2]
[384805209,1757561654105,300.0,0.00013786,2]
[384805210,1757561662451,793.35,0.00012329,2]
[384805211,1757561662561,300.0,0.00013786,2]
[384805213,1757561670656,300.0,0.00013786,2]
[384805214,1757561679042,300.0,0.00013786,2]
[384805215,1757561687170,300.0,0.00013786,2]
[384805216,1757561695229,300.0,0.00013786,2]
[384805217,1757561703378,300.0,0.00013786,2]
[384805218,1757561703993,453.75,0.00012329,2]
[384805219,1757561705846,1000.0,0.00013512,2]
[384805220,1757561706139,1000.0,0.00013512,2]
[384805221,1757561706463,1000.0,0.00013512,2]
[384805222,1757561706778,1000.0,0.00013512,2]
[384805223,1757561707087,108.93603398,0.00013512,2]
[384805224,1757561707108,891.06396602,0.00013512,2]
[384805225,1757561707380,1000.0,0.00013512,2]
[384805226,1757561707700,1000.0,0.00013512,2]
[384805227,1757561708000,1000.0,0.00013512,2]
[384805228,1757561708314,1000.0,0.00013512,2]
[384805229,1757561708617,1000.0,0.00013512,2]
[384805230,1757561711758,1200.0,0.00013785,2]
[384805231,1757561714443,378.12,0.00012329,2]
[384805232,1757561720925,1200.0,0.00013785,2]
[384805233,1757561724974,315.1,0.00012329,2]
[384805234,1757561725121,375.39678123,0.00013824,2]
[384805235,1757561729455,1200.0,0.00013785,2]
[384805236,1757561735408,262.59,0.00012329,2]
[384805237,1757561737628,1200.0,0.00013785,2]
[384805238,1757561746676,1200.0,0.00013785,2]
[384805239,1757561754940,1200.0,0.00013785,2]
[384805240,1757561771273,605.59688553,0.00013826,2]
[384805241,1757561772392,426.0,0.00013785,2]
[384805242,1757561781561,10000.01,0.00013827,2]
[384805243,1757561781584,10000.01,0.00013827,2]
[384805244,1757561781606,10000.01,0.00013827,2]
[384805245,1757561781628,10000.01,0.00013827,2]
[384805246,1757561781649,10000.01,0.00013827,2]
[384805247,1757561781670,10000.01,0.00013827,2]
[384805248,1757561781692,10000.01,0.00013827,2]
[384805249,1757561781713,10000.01,0.00013827,2]
[384805250,1757561781735,10000.01,0.00013827,2]
[384805251,1757561781758,10000.01,0.00013827,2]
[384805252,1757561781779,10000.01,0.00013827,2]
[384805253,1757561781802,10000.01,0.00013827,2]
[384805254,1757561781824,10000.01,0.00013827,2]
[384805255,1757561781845,10000.01,0.00013827,2]
[384805256,1757561781867,10000.01,0.00013827,2]
[384805257,1757561781889,10000.01,0.00013827,2]
[384805258,1757561781909,10000.01,0.00013827,2]
[384805259,1757561781930,10000.01,0.00013827,2]
[384805260,1757561781952,10000.01,0.00013827,2]
[384805261,1757561784018,-955.0,0.00013785,2]
[384805262,1757561791794,-4721.46633324,0.00013827,2]
[384805263,1757561791873,-10000.01,0.00013827,2]
[384805264,1757561792024,-10000.01,0.00013827,2]
[384805265,1757561792144,-10000.01,0.00013827,2]
[384805266,1757561792271,-10000.01,0.00013827,2]
[384805267,1757561792379,-10000.01,0.00013827,2]
[384805268,1757561792502,-834.35116603,0.00013827,2]
[384805269,1757561799304,1500.0,0.00013785,2]
[384805270,1757561807528,1789.57,0.00012329,2]
[384805271,1757561807983,1500.0,0.00013785,2]
[384805272,1757561813664,151.0,0.000134,2]
[384805273,1757561813947,151.0,0.000126,2]
[384805274,1757561814259,151.0,0.000118,2]
[384805275,1757561816678,1500.0,0.00013785,2]
[384805276,1757561818061,1588.73766794,0.00012329,2]
[384805277,1757561818082,678.26233206,0.00012329,2]
[384805278,1757561826346,1500.0,0.00013785,2]
[384805279,1757561828575,2315.16,0.00012329,2]
[384805280,1757561835772,1500.0,0.00013785,2]
[384805281,1757561839035,2085.2,0.00012329,2]
[384805282,1757561845494,1200.0,0.00013784,2]
[384805283,1757561849444,721.38766794,0.00012329,2]
[384805284,1757561849467,1016.27233206,0.00012329,2]
[384805285,1757561855209,1200.0,0.00013784,2]
[384805286,1757561858467,3141.7586333,0.0001384,2]
[384805287,1757561860117,2055.81,0.00012329,2]
[384805288,1757561864303,1200.0,0.00013784,2]
[384805289,1757561870520,1386.16903464,0.00012329,2]
[384805290,1757561870543,841.90096536,0.00012329,2]
[384805291,1757561873206,1200.0,0.00013784,2]
[384805292,1757561880933,1856.73,0.00012329,2]
[384805293,1757561881692,1200.0,0.00013784,2]
[384805297,1757561890379,1500.0,0.00013784,2]
[384805298,1757561891468,1547.27,0.00012329,2]
[384805299,1757561891947,204.10530951,0.00013825,2]
[384805300,1757561901371,1500.0,0.00013784,2]
[384805301,1757561902164,1289.39,0.00012329,2]
[384805302,1757561905316,3132.31934016,0.00013823,2]
[384805303,1757561912606,826.92535033,0.00012329,2]
[384805304,1757561912627,247.56464967,0.00012329,2]
[384805305,1757561912672,825.51048682,0.00013784,2]
[384805306,1757561923162,895.41,0.00012329,2]
[384805307,1757561923833,1500.0,0.00013784,2]
[384805308,1757561928922,666.0,0.00012924,2]
[384805314,1757561932930,1500.0,0.00013784,2]
[384805315,1757561933440,746.18,0.00012329,2]
[384805316,1757561942943,3485.80242943,0.0001383,2]
[384805317,1757561943892,621.81,0.00012329,2]
[384805318,1757561951726,1500.0,0.00013784,2]
[384805319,1757561954451,518.18,0.00012329,2]
[384805320,1757561955478,201.1954227,0.00012924,2]
[384805321,1757561960491,1500.0,0.00013784,2]
[384805322,1757561961516,552.43836536,0.00013824,2]
[384805323,1757561964901,431.82,0.00012329,2]
[384805324,1757561965429,380.17340218,0.000137,2]
[384805325,1757561966695,172.23201149,0.0001384,2]
[384805326,1757561970329,965.97076858,0.00013784,2]
[384805327,1757561975599,538.28,0.00012329,2]
[384805328,1757561979081,1500.0,0.00013784,2]
[384805329,1757561986075,448.57,0.00012329,2]
[384805330,1757561989078,1500.0,0.00013784,2]
[384805331,1757561996518,434.39,0.00012329,2]
[384805332,1757562007241,361.99,0.00012329,2]
[384805333,1757562009541,2400.0,0.00013783,2]
[384805334,1757562015414,151.0,0.0001384,2]
[384805335,1757562016501,151.0,0.0001384,2]
[384805336,1757562016629,151.78147644,0.00013548,2]
[384805337,1757562017526,151.0,0.0001384,2]
[384805338,1757562017709,439.33,0.00012329,2]
[384805339,1757562018584,166.11606898,0.0001384,2]
[384805340,1757562018859,2400.0,0.00013783,2]
[384805341,1757562028343,366.11,0.00012329,2]
[384805342,1757562037857,2400.0,0.00013783,2]
[384805343,1757562039039,305.09,0.00012329,2]
[384805344,1757562047284,2400.0,0.00013783,2]
[384805345,1757562049686,254.24,0.00012329,2]
[384805346,1757562060471,211.87,0.00012329,2]
[384805347,1757562063182,2400.0,0.00013783,2]
[384805348,1757562070914,176.56,0.00012329,2]
[384805349,1757562072424,300.0,0.00013782,2]
[384805350,1757562081421,882.82,0.00012329,2]
[384805351,1757562087407,1000.0,0.0001384,2]
[384805352,1757562088445,816.10604716,0.0001384,2]
[384805353,1757562088888,300.0,0.00013782,2]
[384805354,1757562097395,300.0,0.00013782,2]
[384805357,1757562113779,300.0,0.00013782,2]
[384805358,1757562120331,151.0,0.000138,2]
[384805359,1757562120733,151.0,0.000131,2]
[384805360,1757562121105,151.0,0.000124,2]
[384805361,1757562121423,151.0,0.000117,2]
[384805362,1757562122622,300.0,0.00013782,2]
[384805363,1757562134264,176.73186717,0.00013822,2]
[384805364,1757562139338,1500.0,0.00013782,2]
[384805365,1757562147688,1500.0,0.00013782,2]
[384805366,1757562152020,503.10702393,0.00013822,2]
[384805367,1757562164020,697.64140591,0.00013782,2]
[384805368,1757562172105,1500.0,0.00013782,2]
[384805369,1757562195827,427.81268432,0.00013782,2]
[384805370,1757562209100,1000.0,0.00012922,2]
[384805373,1757562232346,5106.47682559,0.0001383,2]
[384805374,1757562245884,6161.7585446,0.0001384,2]
[384805375,1757562251673,273.25372176,0.00013825,2]
[384805376,1757562333775,10000.01,0.00012921,2]
[384805377,1757562333800,10000.01,0.00012921,2]
[384805378,1757562333824,10000.01,0.00012921,2]
[384805379,1757562333850,10000.01,0.00012921,2]
[384805380,1757562333876,10000.01,0.00012921,2]
[384805381,1757562333900,10000.01,0.00012921,2]
[384805382,1757562333925,10000.01,0.00012921,2]
[384805383,1757562333949,9758.1850931,0.00012921,2]
[384805384,1757562376904,353.08354957,0.00013503,2]
[384805385,1757562392590,238.5029586,0.00013699,2]
[384805386,1757562401501,10000.0,0.00012921,2]
[384805387,1757562410405,210.922268,0.00013699,2]
[384805388,1757562413672,188.7714126,0.00012921,2]
[384805390,1757562424543,459.94210017,0.0001382,2]
[384805391,1757562487775,3404.31788374,0.00013829,2]
[384805392,1757562495917,171.84682,6.46e-05,2]
[384805399,1757562623227,10000.01,0.00012919,2]
[384805400,1757562623248,9897.5446202,0.00012919,2]
[384805401,1757562627305,102.4653798,0.00013823,2]
[384805402,1757562627327,2686.17656376,0.00013823,2]
[384805431,1757562638412,-300.0,0.00013918,2]
[384805432,1757562638424,-300.0,0.00013918,2]
[384805433,1757562638433,-300.0,0.00013918,2]
[384805434,1757562638443,-300.0,0.00013918,2]
[384805435,1757562638453,-1200.0,0.00013918,2]
[384805436,1757562638462,-500.0,0.00013918,2]
[384805437,1757562638472,-500.0,0.00013918,2]
[384805438,1757562638481,-500.0,0.00013918,2]
[384805439,1757562638491,-500.0,0.00013918,2]
[384805440,1757562638500,-500.0,0.00013918,2]
[384805441,1757562638509,-500.0,0.00013918,2]
[384805442,1757562638519,-500.0,0.00013918,2]
[384805443,1757562638528,-500.0,0.00013918,2]
[384805444,1757562638537,-500.0,0.00013918,2]
[384805445,1757562638547,-500.0,0.00013918,2]
[384805446,1757562638556,-500.0,0.00013918,2]
[384805447,1757562638565,-500.0,0.00013918,2]
[384805448,1757562638575,-500.0,0.00013918,2]
[384805449,1757562638586,-500.0,0.00013918,2]
[384805450,1757562638595,-500.0,0.00013918,2]
[384805451,1757562638606,-500.0,0.00013918,2]
[384805452,1757562638616,-500.0,0.00013918,2]
[384805453,1757562638625,-298.99981095,0.00013918,2]
[384805454,1757562638635,-500.0,0.00013918,2]
[384805455,1757562638644,-500.0,0.00013918,2]
[384805456,1757562638654,-500.0,0.00013918,2]
[384805457,1757562638664,-500.0,0.00013918,2]
[384805458,1757562638677,-500.0,0.00013918,2]
[384805459,1757562638686,-500.0,0.00013918,2]
[384805460,1757562638696,-367.26292282,0.00013918,2]
[384805461,1757562638706,-500.0,0.00013918,2]
[384805462,1757562638716,-500.0,0.00013918,2]
[384805463,1757562638726,-500.0,0.00013918,2]
[384805464,1757562638735,-500.0,0.00013918,2]
[384805465,1757562638745,-500.0,0.00013918,2]
[384805466,1757562638755,-500.0,0.00013918,2]
[384805467,1757562638764,-550.60211874,0.00013918,2]
[384805468,1757562638773,-500.0,0.00013918,2]
[384805469,1757562638782,-500.0,0.00013918,2]
[384805470,1757562638792,-500.0,0.00013918,2]
[384805471,1757562638801,-500.0,0.00013918,2]
[384805472,1757562638810,-500.0,0.00013918,2]
[384805473,1757562638820,-500.0,0.00013918,2]
[384805474,1757562638829,-500.0,0.00013918,2]
[384805475,1757562638838,-500.0,0.00013918,2]
[384805476,1757562638847,-500.0,0.00013918,2]
[384805477,1757562638857,-500.0,0.00013918,2]
[384805478,1757562638866,-500.0,0.00013918,2]
[384805479,1757562638876,-500.0,0.00013918,2]
[384805480,1757562638885,-500.0,0.00013918,2]
[384805481,1757562638895,-500.0,0.00013918,2]
[384805482,1757562638904,-500.0,0.00013918,2]
[384805483,1757562638913,-500.0,0.00013918,2]
[384805484,1757562638923,-500.0,0.00013918,2]
[384805485,1757562638932,-500.0,0.00013918,2]
[384805486,1757562638941,-500.0,0.00013918,2]
[384805487,1757562638950,-500.0,0.00013918,2]
[384805488,1757562638960,-500.0,0.00013918,2]
[384805489,1757562638969,-500.0,0.00013918,2]
[384805490,1757562638978,-500.0,0.00013918,2]
[384805491,1757562638987,-535.01296878,0.00013918,2]
[384805492,1757562638997,-500.0,0.00013918,2]
[384805493,1757562639007,-500.0,0.00013918,2]
[384805494,1757562639016,-500.0,0.00013918,2]
[384805495,1757562639025,-500.0,0.00013918,2]
[384805496,1757562639035,-500.0,0.00013918,2]
[384805497,1757562639151,-500.0,0.00013918,2]
[384805498,1757562639161,-500.0,0.00013918,2]
[384805499,1757562639170,-500.0,0.00013918,2]
[384805500,1757562639179,-500.0,0.00013918,2]
[384805501,1757562639188,-500.0,0.00013918,2]
[384805502,1757562639197,-500.0,0.00013918,2]
[384805503,1757562639207,-500.0,0.00013918,2]
[384805504,1757562639216,-500.0,0.00013918,2]
[384805505,1757562639225,-194.8192681,0.00013918,2]
[384805506,1757562639235,-500.0,0.00013918,2]
[384805507,1757562639244,-500.0,0.00013918,2]
[384805508,1757562639253,-500.0,0.00013918,2]
[384805509,1757562639262,-500.0,0.00013918,2]
[384805510,1757562639271,-500.0,0.00013918,2]
[384805511,1757562639280,-500.0,0.00013918,2]
[384805512,1757562639289,-500.0,0.00013918,2]
[384805513,1757562639298,-500.0,0.00013918,2]
[384805514,1757562639307,-500.0,0.00013918,2]
[384805515,1757562639317,-500.0,0.00013918,2]
[384805516,1757562639326,-500.0,0.00013918,2]
[384805517,1757562639334,-500.0,0.00013918,2]
[384805518,1757562639344,-500.0,0.00013918,2]
[384805519,1757562639353,-500.0,0.00013918,2]
[384805520,1757562639362,-500.0,0.00013918,2]
[384805521,1757562639371,-500.0,0.00013918,2]
[384805522,1757562639380,-500.0,0.00013918,2]
[384805523,1757562639389,-500.0,0.00013918,2]
[384805524,1757562639398,-500.0,0.00013918,2]
[384805525,1757562639408,-500.0,0.00013918,2]
[384805526,1757562639417,-500.0,0.00013918,2]
[384805527,1757562639426,-495.75561783,0.00013918,2]
[384805528,1757562639435,-500.0,0.00013918,2]
[384805529,1757562639444,-500.0,0.00013918,2]
[384805530,1757562639453,-500.0,0.00013918,2]
[384805531,1757562639463,-500.0,0.00013918,2]
[384805532,1757562639471,-500.0,0.00013918,2]
[384805533,1757562639480,-500.0,0.00013918,2]
[384805534,1757562639490,-500.0,0.00013918,2]
[384805535,1757562639499,-500.0,0.00013918,2]
[384805536,1757562639509,-500.0,0.00013918,2]
[384805537,1757562639518,-500.0,0.00013918,2]
[384805538,1757562639528,-500.0,0.00013918,2]
[384805539,1757562639537,-500.0,0.00013918,2]
[384805540,1757562639546,-500.0,0.00013918,2]
[384805541,1757562639555,-500.0,0.00013918,2]
[384805542,1757562639564,-500.0,0.00013918,2]
[384805543,1757562639572,-443.428689,0.00013918,2]
[384805544,1757562639582,-500.0,0.00013918,2]
[384805545,1757562639591,-500.0,0.00013918,2]
[384805547,1757562639600,-500.0,0.00013918,2]
[384805549,1757562639611,-500.0,0.00013918,2]
[384805550,1757562639620,-500.0,0.00013918,2]
[384805551,1757562639629,-500.0,0.00013918,2]
[384805552,1757562639638,-500.0,0.00013918,2]
[384805554,1757562639648,-500.0,0.00013918,2]
[384805555,1757562639657,-500.0,0.00013918,2]
[384805557,1757562639667,-500.0,0.00013918,2]
[384805558,1757562639678,-500.0,0.00013918,2]
[384805559,1757562639688,-500.0,0.00013918,2]
[384805560,1757562639697,-500.0,0.00013918,2]
[384805561,1757562639706,-500.0,0.00013918,2]
[384805562,1757562639716,-500.0,0.00013918,2]
[384805563,1757562639726,-500.0,0.00013918,2]
[384805564,1757562639735,-500.0,0.00013918,2]
[384805565,1757562639746,-500.0,0.00013918,2]
[384805566,1757562639755,-502.44799079,0.00013918,2]
[384805567,1757562639765,-500.0,0.00013918,2]
[384805568,1757562639775,-500.0,0.00013918,2]
[384805569,1757562639786,-500.0,0.00013918,2]
[384805571,1757562639796,-500.0,0.00013918,2]
[384805572,1757562639806,-500.0,0.00013918,2]
[384805573,1757562639816,-500.0,0.00013918,2]
[384805574,1757562639826,-500.0,0.00013918,2]
[384805575,1757562639835,-500.0,0.00013918,2]
[384805576,1757562639845,-500.0,0.00013918,2]
[384805577,1757562639855,-417.15472785,0.00013918,2]
[384805578,1757562639864,-530.95967032,0.00013918,2]
[384805579,1757562639874,-217.69300629,0.00013918,2]
[384805580,1757562639884,-160.0,0.00013918,2]
[384805581,1757562639893,-233.10680167,0.00013918,2]
[384805582,1757562639903,-160.0,0.00013918,2]
[384805583,1757562639912,-160.0,0.00013918,2]
[384805584,1757562639922,-160.0,0.00013919,2]
[384805585,1757562639931,-160.0,0.00013919,2]
[384805586,1757562639940,-999.14752376,0.00013919,2]
[384805587,1757562639950,-1200.0,0.00013919,2]
[384805588,1757562639959,-358.85236866,0.00013919,2]
[384805589,1757562639968,-514.68090006,0.00013919,2]
[384805590,1757562639977,-5087.29,0.00013919,2]
[384805591,1757562639986,-260.79307182,0.00013919,2]
[384805592,1757562639995,-193.07614328,0.00013919,2]
[384805593,1757562640005,-160.0,0.00013919,2]
[384805594,1757562640015,-846.96613202,0.00013919,2]
[384805595,1757562640024,-50000.0,0.0001392,2]
[384805596,1757562640033,-480.0,0.0001392,2]
[384805597,1757562640042,-480.0,0.0001392,2]
[384805598,1757562640051,-480.0,0.0001392,2]
[384805599,1757562640060,-577.57,0.0001392,2]
[384805600,1757562640069,-514.9,0.0001392,2]
[384805601,1757562640079,-480.0,0.0001392,2]
[384805602,1757562640088,-480.0,0.00013922,2]
[384805603,1757562640097,-480.68908374,0.00013922,2]
[384805604,1757562640107,-480.0,0.00013922,2]
[384805605,1757562640116,-480.0,0.00013922,2]
[384805606,1757562640125,-480.0,0.00013922,2]
[384805607,1757562640134,-480.0,0.00013922,2]
[384805608,1757562640143,-480.0,0.00013922,2]
[384805609,1757562640152,-480.0,0.00013922,2]
[384805610,1757562640162,-480.0,0.00013922,2]
[384805611,1757562640172,-480.0,0.00013922,2]
[384805612,1757562640181,-480.0,0.00013922,2]
[384805613,1757562640190,-480.0,0.00013922,2]
[384805614,1757562640199,-480.0,0.00013922,2]
[384805615,1757562640208,-480.0,0.00013922,2]
[384805616,1757562640217,-480.0,0.00013922,2]
[384805617,1757562640226,-481.37446135,0.00013922,2]
[384805618,1757562640235,-480.0,0.00013922,2]
[384805619,1757562640245,-480.0,0.00013922,2]
[384805620,1757562640254,-480.0,0.00013922,2]
[384805621,1757562640263,-257.23275416,0.00013922,2]
[384805622,1757562640272,-486.19027202,0.00013922,2]
[384805623,1757562640282,-480.0,0.00013922,2]
[384805624,1757562640291,-480.0,0.00013922,2]
[384805625,1757562640300,-480.0,0.00013922,2]
[384805626,1757562640309,-943.59,0.00013922,2]
[384805627,1757562640317,-480.0,0.00013922,2]
[384805628,1757562640327,-480.0,0.00013922,2]
[384805629,1757562640336,-480.0,0.00013922,2]
[384805630,1757562640346,-480.0,0.00013922,2]
[384805632,1757562640355,-480.0,0.00013922,2]
[384805633,1757562640364,-480.0,0.00013922,2]
[384805634,1757562640373,-480.0,0.00013922,2]
[384805635,1757562640382,-667.79,0.00013922,2]
[384805636,1757562640391,-480.0,0.00013922,2]
[384805637,1757562640400,-480.0,0.00013922,2]
[384805638,1757562640410,-480.0,0.00013922,2]
[384805639,1757562640419,-480.0,0.00013922,2]
[384805640,1757562640427,-480.0,0.00013922,2]
[384805641,1757562640437,-483.5146039,0.00013922,2]
[384805642,1757562640446,-480.0,0.00013922,2]
[384805644,1757562640455,-480.0,0.00013922,2]
[384805645,1757562640464,-480.0,0.00013922,2]
[384805646,1757562640473,-480.0,0.00013922,2]
[384805647,1757562640482,-480.0,0.00013922,2]
[384805648,1757562640493,-480.9855941,0.00013922,2]
[384805649,1757562640502,-480.0,0.00013922,2]
[384805650,1757562640511,-481.60293997,0.00013922,2]
[384805651,1757562640521,-480.0,0.00013922,2]
[384805652,1757562640530,-480.0,0.00013922,2]
[384805653,1757562640539,-601.20454295,0.00013922,2]
[384805654,1757562640548,-480.0,0.00013922,2]
[384805655,1757562640558,-480.0,0.00013922,2]
[384805656,1757562640567,-480.50465226,0.00013922,2]
[384805657,1757562640577,-480.0,0.00013922,2]
[384805658,1757562640586,-480.0,0.00013922,2]
[384805659,1757562640595,-480.0,0.00013922,2]
[384805660,1757562640605,-480.0,0.00013922,2]
[384805661,1757562640614,-480.0,0.00013922,2]
[384805662,1757562640623,-588.81644419,0.00013922,2]
[384805663,1757562640632,-480.0,0.00013922,2]
[384805664,1757562640641,-480.0,0.00013922,2]
[384805665,1757562640651,-189.14,0.00013922,2]
[384805666,1757562640660,-480.8821631,0.00013922,2]
[384805667,1757562640671,-480.0,0.00013922,2]
[384805668,1757562640682,-482.96175924,0.00013922,2]
[384805669,1757562640691,-480.28481538,0.00013922,2]
[384805670,1757562640700,-482.80991535,0.00013922,2]
[384805671,1757562640709,-480.0,0.00013922,2]
[384805672,1757562640719,-655.35,0.00013922,2]
[384805673,1757562640728,-480.95735709,0.00013922,2]
[384805674,1757562640738,-481.22436327,0.00013922,2]
[384805675,1757562640749,-480.0,0.00013922,2]
[384805676,1757562640758,-480.0,0.00013922,2]
[384805677,1757562640767,-480.0,0.00013922,2]
[384805678,1757562640776,-480.70719399,0.00013922,2]
[384805679,1757562640786,-480.0,0.00013922,2]
[384805680,1757562640796,-480.0,0.00013922,2]
[384805681,1757562640806,-480.0,0.00013922,2]
[384805682,1757562640815,-480.0,0.00013922,2]
[384805683,1757562640824,-487.01836348,0.00013922,2]
[384805684,1757562640834,-480.0,0.00013922,2]
[384805685,1757562640844,-480.0,0.00013922,2]
[384805686,1757562640853,-480.0,0.00013922,2]
[384805687,1757562640862,-485.56106046,0.00013922,2]
[384805688,1757562640871,-480.31255757,0.00013922,2]
[384805689,1757562640880,-484.75761571,0.00013922,2]
[384805690,1757562640890,-480.0,0.00013922,2]
[384805691,1757562640899,-571.4739135,0.00013922,2]
[384805692,1757562640910,-483.10016568,0.00013922,2]
[384805693,1757562640920,-480.08230355,0.00013922,2]
[384805694,1757562640930,-481.97673491,0.00013922,2]
[384805695,1757562640940,-480.0,0.00013922,2]
[384805696,1757562640950,-482.52917484,0.00013922,2]
[384805697,1757562640959,-480.0,0.00013923,2]
[384805698,1757562640968,-480.0,0.00013923,2]
[384805699,1757562640977,-535.61053109,0.00013923,2]
[384805700,1757562640986,-480.0,0.00013923,2]
[384805701,1757562640996,-480.0,0.00013923,2]
[384805702,1757562641005,-480.0,0.00013923,2]
[384805703,1757562641015,-482.31260379,0.00013923,2]
[384805704,1757562641024,-480.0,0.00013923,2]
[384805705,1757562641034,-480.0,0.00013923,2]
[384805706,1757562641043,-480.0,0.00013923,2]
[384805707,1757562641053,-480.0,0.00013923,2]
[384805708,1757562641062,-483.4723272,0.00013923,2]
[384805709,1757562641071,-480.0,0.00013923,2]
[384805710,1757562641081,-480.0,0.00013923,2]
[384805711,1757562641091,-480.0,0.00013923,2]
[384805712,1757562641101,-480.0,0.00013923,2]
[384805713,1757562641111,-480.0,0.00013923,2]